fUST/lending_fUST_20240311
["ID","MTS","AMOUNT","RATE_DAILY","PERIOD"]
[318142037,1710095440985,-500.0,0.00024762,2]
[318142038,1710095440995,-500.0,0.00024762,2]
[318142040,1710095441004,-500.0,0.00024762,2]
[318142041,1710095441013,-500.0,0.00024762,2]
[318142043,1710095441022,-500.0,0.00024762,2]
[318142044,1710095441031,-500.0,0.00024762,2]
[318142045,1710095441040,-500.0,0.00024762,2]
[318142047,1710095441049,-500.0,0.00024762,2]
[318142048,1710095441058,-500.0,0.00024762,2]
[318142050,1710095441067,-500.0,0.00024762,2]
[318142051,1710095441076,-500.0,0.00024762,2]
[318142053,1710095441086,-500.0,0.00024762,2]
[318142054,1710095441094,-265.93855208,0.00024762,2]
[318142056,1710095441104,-500.0,0.00024762,2]
[318142057,1710095441115,-500.0,0.00024762,2]
[318142058,1710095441124,-500.0,0.00024762,2]
[318142060,1710095441134,-500.0,0.00024762,2]
[318142061,1710095441144,-244.13244595,0.00024762,2]
[318142063,1710095441153,-500.0,0.00024762,2]
[318142064,1710095441163,-500.0,0.00024762,2]
[318142066,1710095441172,-500.0,0.00024762,2]
[318142067,1710095441183,-500.0,0.00024762,2]
[318142069,1710095441192,-500.0,0.00024762,2]
[318142070,1710095441201,-568.36,0.00024762,2]
[318142072,1710095441210,-500.0,0.00024762,2]
[318142073,1710095441220,-500.0,0.00024762,2]
[318142074,1710095441228,-500.0,0.00024762,2]
[318142076,1710095441237,-500.0,0.00024762,2]
[318142077,1710095441247,-500.0,0.00024762,2]
[318142079,1710095441256,-500.0,0.00024762,2]
[318142080,1710095441265,-500.0,0.00024762,2]
[318142081,1710095441275,-500.0,0.00024762,2]
[318142083,1710095441284,-500.0,0.00024762,2]
[318142084,1710095441294,-500.0,0.00024762,2]
[318142086,1710095441303,-500.0,0.00024762,2]
[318142087,1710095441312,-500.0,0.00024762,2]
[318142089,1710095441321,-500.0,0.00024762,2]
[318142090,1710095441330,-500.0,0.00024762,2]
[318142092,1710095441340,-504.13656429,0.00024762,2]
[318142093,1710095441349,-500.0,0.00024762,2]
[318142095,1710095441358,-500.0,0.00024762,2]
[318142096,1710095441367,-500.0,0.00024762,2]
[318142097,1710095441377,-500.0,0.00024762,2]
[318142099,1710095441386,-503.84562375,0.00024762,2]
[318142100,1710095441395,-500.0,0.00024762,2]
[318142102,1710095441403,-471.028,0.00024762,2]
[318142103,1710095441413,-542.96,0.00024762,2]
[318142105,1710095441422,-542.96,0.00024762,2]
[318142106,1710095441430,-542.96,0.00024762,2]
[318142108,1710095441440,-542.96,0.00024762,2]
[318142109,1710095441449,-542.96,0.00024762,2]
[318142111,1710095441461,-542.96,0.00024762,2]
[318142112,1710095441470,-542.96,0.00024762,2]
[318142113,1710095441479,-542.96,0.00024762,2]
[318142115,1710095441488,-9555.28,0.00024762,2]
[318142116,1710095441497,-9555.28,0.00024762,2]
[318142118,1710095441506,-5663.80051735,0.00024762,2]
[318142181,1710095442768,-3891.47948265,0.00024762,2]
[318142182,1710095442777,-2928.52051735,0.00024762,2]
[318142330,1710095445972,-1130.36298653,0.00024762,2]
[318142331,1710095445984,-5496.39649612,0.00024762,2]
[318142333,1710095445993,-9555.28,0.00024762,2]
[318142334,1710095446002,-9555.28,0.00024762,2]
[318142336,1710095446012,-9555.28,0.00024762,2]
[318142337,1710095446021,-1939.19251847,0.00024762,2]
[318142339,1710095446033,-677.56,0.00024762,2]
[318142340,1710095446045,-6938.52748153,0.00024762,2]
[318142341,1710095446054,-500.0,0.00024762,2]
[318142343,1710095446063,-500.0,0.00024762,2]
[318142344,1710095446073,-500.0,0.00024762,2]
[318142346,1710095446082,-500.0,0.00024762,2]
[318142347,1710095446093,-500.0,0.00024762,2]
[318142349,1710095446107,-500.0,0.00024762,2]
[318142350,1710095446116,-500.0,0.00024762,2]
[318142352,1710095446126,-500.0,0.00024762,2]
[318142353,1710095446135,-500.0,0.00024762,2]
[318142355,1710095446144,-500.0,0.00024762,2]
[318142356,1710095446154,-500.0,0.00024762,2]
[318142357,1710095446163,-500.0,0.00024762,2]
[318142359,1710095446172,-500.0,0.00024762,2]
[318142360,1710095446181,-257.36,0.00024762,2]
[318142362,1710095446191,-500.0,0.00024762,2]
[318142363,1710095446201,-500.0,0.00024762,2]
[318142365,1710095446210,-300.1357273,0.00024762,2]
[318145153,1710095696982,280.0,0.00024754,35]
[318145175,1710095697535,280.0,0.00024744,35]
[318145199,1710095698131,280.0,0.00024734,35]
[318145223,1710095698715,280.0,0.00024754,35]
[318145246,1710095699297,280.0,0.00024744,35]
[318145270,1710095699897,272.72758336,0.00024734,35]
[318147176,1710096579036,172.76542,0.00019528,2]
[318147177,1710096599138,1220.9783855,0.00019715,2]
[318147180,1710096608163,387.14808,0.00019715,2]
[318147207,1710096632122,-2020.56022276,0.0002005,2]
[318147209,1710096632131,-596.19717157,0.00020051,2]
[318147211,1710096632140,-191.54405702,0.00020051,2]
[318147213,1710096632150,-1474.41177418,0.00020052,2]
[318147215,1710096632160,-1170.5377884,0.00020053,2]
[318147217,1710096632169,-155.15049598,0.00020392,2]
[318147219,1710096632178,-528.65561539,0.00020392,2]
[318147221,1710096632188,-682.55292822,0.00020393,2]
[318147225,1710096632198,-1129.73141166,0.00020399,2]
[318147227,1710096632208,-325.47413417,0.00020402,2]
[318147229,1710096632217,-946.9695734,0.00020415,2]
[318147231,1710096632226,-172.76542,0.00020859,2]
[318147233,1710096632235,-12276.85723759,0.00021822,2]
[318147235,1710096632247,-35379.93219811,0.00021822,2]
[318147237,1710096632256,-172.76542,0.0002219,2]
[318147240,1710096632265,-500.0,0.00022558,2]
[318147242,1710096632274,-500.0,0.00022558,2]
[318147244,1710096632283,-500.0,0.00022558,2]
[318147246,1710096632292,-476.59076626,0.00022558,2]
[318147247,1710096632301,-500.0,0.00022558,2]
[318147248,1710096632310,-522.78480042,0.00022558,2]
[318147249,1710096632319,-971.0428001,0.00022561,2]
[318147250,1710096632328,-186.93819399,0.00022561,2]
[318147251,1710096632340,-295.70248588,0.00022654,2]
[318147252,1710096632349,-266.58626252,0.00022854,3]
[318147253,1710096632359,-265.51779014,0.00022854,3]
[318147254,1710096632368,-169.668718,0.00022934,2]
[318147255,1710096632376,-172.880331,0.00023521,2]
[318147256,1710096632385,-182.632306,0.00023521,2]
[318147257,1710096632394,-153.0,0.00023945,2]
[318147259,1710096632404,-153.0,0.00023945,2]
[318147261,1710096632414,-153.0,0.00024219,2]
[318147263,1710096632424,-1000.0,0.00024365,7]
[318147265,1710096632433,-196.0,0.0002454,19]
[318147266,1710096632442,-2000.0,0.000246,7]
[318147268,1710096632453,-2000.0,0.0002461,7]
[318147271,1710096632462,-227.26689456,0.0002461,2]
[318147272,1710096632471,-1605.64278856,0.0002462,7]
[318147275,1710096632483,-623.95714562,0.0002462,7]
[318147277,1710096632495,-1139.88048057,0.0002462,7]
[318147833,1710096637932,-456.67774125,0.0002462,7]
[318147836,1710096637942,-1580.20625365,0.00024646,6]
[318147837,1710096637951,-174.9577511,0.00024658,2]
[318147839,1710096637961,-3194.37344447,0.00024687,2]
[318147841,1710096637970,-155.13341474,0.00024734,2]
[318147843,1710096637980,-304.43807769,0.00024734,5]
[318147845,1710096637989,-155.13341474,0.00024734,4]
[318147847,1710096637998,-11052.87549151,0.00024734,2]
[318147850,1710096638010,-4896.85195764,0.00024734,2]
[318147852,1710096638019,-309.8295945,0.00024737,2]
[318147853,1710096638028,-100.51006181,0.00024758,2]
[318147856,1710096638042,-399.48993819,0.00024758,2]
[318147858,1710096638051,-500.0,0.00024758,2]
[318147860,1710096638062,-634.57981525,0.0002476,2]
[318147862,1710096638070,-500.0,0.00024761,2]
[318147864,1710096638079,-403.71139101,0.00024761,2]
[318147866,1710096638090,-96.28860899,0.00024761,2]
[318147868,1710096638100,-374.97300883,0.00024761,2]
[318147870,1710096638110,-500.0,0.00024761,2]
[318147872,1710096638119,-500.0,0.00024761,2]
[318147874,1710096638128,-500.0,0.00024761,2]
[318147876,1710096638137,-500.0,0.00024761,2]
[318147878,1710096638145,-500.0,0.00024761,2]
[318147880,1710096638154,-5705.10859913,0.00024761,2]
[318147882,1710096638167,-277.69983,0.00024761,2]
[318148087,1710096640183,-387.38157087,0.00024761,2]
[318148089,1710096640192,-6370.19,0.00024761,2]
[318148091,1710096640201,-6370.19,0.00024761,2]
[318148093,1710096640210,-6370.19,0.00024761,2]
[318148095,1710096640219,-6370.19,0.00024761,2]
[318148097,1710096640228,-1602.84845852,0.00024761,2]
[318148099,1710096640239,-339.64638281,0.00024761,2]
[318148102,1710096640251,-4427.69515867,0.00024761,2]
[318148104,1710096640260,-500.0,0.00024761,2]
[318148106,1710096640269,-466.94115806,0.00024761,2]
[318148108,1710096640281,-33.05884194,0.00024761,2]
[318148110,1710096640290,-500.0,0.00024761,2]
[318148112,1710096640300,-189.27144041,0.00024761,2]
[318148114,1710096640310,-500.0,0.00024761,2]
[318148116,1710096640320,-215.1,0.00024761,2]
[318148118,1710096640329,-255.55303743,0.00024761,2]
[318148120,1710096640339,-500.0,0.00024761,2]
[318148122,1710096640348,-500.0,0.00024761,2]
[318148124,1710096640357,-374.31629048,0.00024761,2]
[318148126,1710096640368,-125.68370952,0.00024761,2]
[318148128,1710096640378,-500.0,0.00024761,2]
[318148130,1710096640387,-500.0,0.00024761,2]
[318148132,1710096640396,-500.0,0.00024761,2]
[318148134,1710096640405,-235.14481489,0.00024761,2]
[318148136,1710096640414,-524.29941204,0.00024762,2]
[318148138,1710096640423,-323.54544016,0.00024762,2]
[318148140,1710096640433,-2114.49634581,0.00024762,2]
[318148142,1710096640442,-1185.25978692,0.00024762,2]
[318148144,1710096640454,-624.13231565,0.00024762,2]
[318148146,1710096640463,-155.13807288,0.00024762,2]
[318148148,1710096640473,-163.32544229,0.00024762,2]
[318148150,1710096640482,-325.04224151,0.00024762,2]
[318148152,1710096640491,-8077.14838461,0.00024762,2]
[318148154,1710096640503,-636.42168661,0.00024762,2]
[318148156,1710096640512,-2878.92017524,0.00024762,2]
[318148158,1710096640522,-211.97574014,0.00024762,2]
[318148160,1710096640531,-570.424351,0.00024762,2]
[318148162,1710096640540,-155.22986261,0.00024762,2]
[318148164,1710096640549,-199.59737851,0.00024762,2]
[318148166,1710096640558,-613.35434871,0.00024762,2]
[318148168,1710096640567,-500.0,0.00024762,2]
[318148170,1710096640576,-500.0,0.00024762,2]
[318148172,1710096640585,-500.0,0.00024762,2]
[318148174,1710096640594,-176.06235933,0.00024762,2]
[318148176,1710096640603,-500.0,0.00024762,2]
[318148178,1710096640613,-500.0,0.00024762,2]
[318148180,1710096640622,-500.0,0.00024762,2]
[318148182,1710096640631,-500.0,0.00024762,2]
[318148184,1710096640639,-500.0,0.00024762,2]
[318148186,1710096640648,-500.0,0.00024762,2]
[318148188,1710096640662,-500.0,0.00024762,2]
[318148190,1710096640671,-500.0,0.00024762,2]
[318148192,1710096640680,-500.0,0.00024762,2]
[318148194,1710096640689,-500.0,0.00024762,2]
[318148196,1710096640699,-500.0,0.00024762,2]
[318148198,1710096640708,-500.0,0.00024762,2]
[318148200,1710096640718,-500.0,0.00024762,2]
[318148203,1710096640727,-500.0,0.00024762,2]
[318148205,1710096640736,-500.0,0.00024762,2]
[318148206,1710096640745,-500.0,0.00024762,2]
[318148207,1710096640754,-500.0,0.00024762,2]
[318148208,1710096640763,-500.0,0.00024762,2]
[318148209,1710096640771,-500.0,0.00024762,2]
[318148210,1710096640781,-500.0,0.00024762,2]
[318148211,1710096640790,-500.0,0.00024762,2]
[318148212,1710096640799,-215.28029424,0.00024762,2]
[318148213,1710096640808,-500.0,0.00024762,2]
[318148214,1710096640817,-500.0,0.00024762,2]
[318148215,1710096640826,-500.0,0.00024762,2]
[318148216,1710096640835,-500.0,0.00024762,2]
[318148217,1710096640845,-500.0,0.00024762,2]
[318148218,1710096640854,-234.30845819,0.00024762,2]
[318148220,1710096640863,-500.0,0.00024762,2]
[318148222,1710096640872,-500.0,0.00024762,2]
[318148224,1710096640880,-500.0,0.00024762,2]
[318148226,1710096640889,-500.0,0.00024762,2]
[318148228,1710096640898,-500.0,0.00024762,2]
[318148230,1710096640907,-500.0,0.00024762,2]
[318148231,1710096640916,-500.0,0.00024762,2]
[318148233,1710096640925,-500.0,0.00024762,2]
[318148235,1710096640934,-500.0,0.00024762,2]
[318148237,1710096640943,-500.0,0.00024762,2]
[318148239,1710096640952,-500.0,0.00024762,2]
[318148241,1710096640962,-500.0,0.00024762,2]
[318148243,1710096640971,-500.0,0.00024762,2]
[318148245,1710096640980,-500.0,0.00024762,2]
[318148247,1710096640990,-500.0,0.00024762,2]
[318148249,1710096640999,-500.0,0.00024762,2]
[318148251,1710096641009,-499.58066065,0.00024762,2]
[318148253,1710096641019,-500.0,0.00024762,2]
[318148255,1710096641028,-500.0,0.00024762,2]
[318148257,1710096641036,-500.0,0.00024762,2]
[318148259,1710096641045,-500.0,0.00024762,2]
[318148261,1710096641054,-500.0,0.00024762,2]
[318148263,1710096641063,-502.44003634,0.00024762,2]
[318148265,1710096641072,-500.0,0.00024762,2]
[318148266,1710096641082,-500.0,0.00024762,2]
[318148267,1710096641091,-500.0,0.00024762,2]
[318148268,1710096641101,-500.0,0.00024762,2]
[318148269,1710096641109,-500.0,0.00024762,2]
[318148270,1710096641118,-500.0,0.00024762,2]
[318148271,1710096641127,-500.0,0.00024762,2]
[318148272,1710096641136,-500.0,0.00024762,2]
[318148273,1710096641145,-168.62694019,0.00024762,2]
[318148274,1710096641154,-500.0,0.00024762,2]
[318148275,1710096641163,-500.0,0.00024762,2]
[318148276,1710096641172,-271.01329752,0.00024762,2]
[318148277,1710096641181,-500.0,0.00024762,2]
[318148278,1710096641190,-500.0,0.00024762,2]
[318148279,1710096641198,-500.0,0.00024762,2]
[318148280,1710096641207,-500.0,0.00024762,2]
[318148281,1710096641216,-500.0,0.00024762,2]
[318148282,1710096641226,-500.0,0.00024762,2]
[318148283,1710096641234,-500.0,0.00024762,2]
[318148284,1710096641243,-500.0,0.00024762,2]
[318148285,1710096641252,-500.0,0.00024762,2]
[318148286,1710096641261,-500.0,0.00024762,2]
[318148287,1710096641270,-500.35153087,0.00024762,2]
[318148288,1710096641281,-500.0,0.00024762,2]
[318148289,1710096641292,-500.0,0.00024762,2]
[318148290,1710096641301,-500.0,0.00024762,2]
[318148291,1710096641310,-500.0,0.00024762,2]
[318148292,1710096641319,-500.0,0.00024762,2]
[318148293,1710096641329,-500.0,0.00024762,2]
[318148294,1710096641338,-615.03417698,0.00024762,2]
[318148295,1710096641347,-500.0,0.00024762,2]
[318148296,1710096641357,-500.0,0.00024762,2]
[318148297,1710096641366,-500.0,0.00024762,2]
[318148298,1710096641376,-500.0,0.00024762,2]
[318148299,1710096641385,-500.0,0.00024762,2]
[318148300,1710096641395,-500.0,0.00024762,2]
[318148301,1710096641404,-500.434683,0.00024762,2]
[318148302,1710096641414,-500.0,0.00024762,2]
[318148303,1710096641423,-500.0,0.00024762,2]
[318148304,1710096641433,-500.0,0.00024762,2]
[318148305,1710096641442,-443.81232122,0.00024762,2]
[318148306,1710096641455,-500.0,0.00024762,2]
[318148307,1710096641465,-500.0,0.00024762,2]
[318148308,1710096641475,-500.0,0.00024762,2]
[318148309,1710096641484,-500.0,0.00024762,2]
[318148310,1710096641493,-500.0,0.00024762,2]
[318148311,1710096641502,-312.76380303,0.00024762,2]
[318148312,1710096641511,-500.0,0.00024762,2]
[318148313,1710096641521,-500.0,0.00024762,2]
[318148314,1710096641531,-270.24031321,0.00024762,2]
[318148315,1710096641540,-500.0,0.00024762,2]
[318148316,1710096641550,-500.0,0.00024762,2]
[318148317,1710096641558,-500.0,0.00024762,2]
[318148318,1710096641567,-500.0,0.00024762,2]
[318148319,1710096641576,-500.0,0.00024762,2]
[318148320,1710096641585,-500.0,0.00024762,2]
[318148321,1710096641595,-613.48,0.00024762,2]
[318148322,1710096641604,-613.48,0.00024762,2]
[318148323,1710096641613,-613.48,0.00024762,2]
[318148324,1710096641623,-613.48,0.00024762,2]
[318148325,1710096641632,-613.48,0.00024762,2]
[318148326,1710096641641,-613.48,0.00024762,2]
[318148328,1710096641650,-500.0,0.00024762,2]
[318148330,1710096641659,-500.0,0.00024762,2]
[318148332,1710096641669,-500.0,0.00024762,2]
[318148334,1710096641678,-500.0,0.00024762,2]
[318148336,1710096641687,-265.43734448,0.00024762,2]
[318148338,1710096641697,-500.0,0.00024762,2]
[318148340,1710096641705,-500.0,0.00024762,2]
[318148342,1710096641715,-500.0,0.00024762,2]
[318148344,1710096641724,-500.0,0.00024762,2]
[318148346,1710096641733,-595.58,0.00024762,2]
[318148348,1710096641742,-583.03090684,0.00024762,2]
[318148350,1710096641751,-759.16,0.00024762,2]
[318148352,1710096641760,-759.16,0.00024762,2]
[318148354,1710096641769,-759.16,0.00024762,2]
[318148356,1710096641778,-759.16,0.00024762,2]
[318148357,1710096641787,-759.16,0.00024762,2]
[318148359,1710096641797,-759.16,0.00024762,2]
[318148361,1710096641806,-500.0,0.00024762,2]
[318148363,1710096641833,-1943.55,0.00024762,2]
[318148364,1710096641864,-1943.55,0.00024762,2]
[318148366,1710096641874,-1943.55,0.00024762,2]
[318148368,1710096641882,-1943.55,0.00024762,2]
[318148370,1710096641891,-1943.55,0.00024762,2]
[318148372,1710096641900,-1943.55,0.00024762,2]
[318148374,1710096641911,-500.0,0.00024762,2]
[318148376,1710096641920,-500.0,0.00024762,2]
[318148378,1710096641929,-500.0,0.00024762,2]
[318148380,1710096641939,-500.0,0.00024762,2]
[318148382,1710096641948,-4467.4165308,0.00024762,2]
[318148479,1710096643009,-1902.7734692,0.00024762,2]
[318148480,1710096643018,-2957.06952736,0.00024762,2]
[318148481,1710096643042,-3413.12047264,0.00024762,2]
[318148482,1710096643051,-151.0,0.00024762,2]
[318148483,1710096643059,-151.0,0.00024762,2]
[318148484,1710096643069,-151.0,0.00024762,2]
[318148485,1710096643078,-151.0,0.00024762,2]
[318148486,1710096643087,-151.0,0.00024762,2]
[318148487,1710096643097,-151.0,0.00024762,2]
[318148488,1710096643107,-151.0,0.00024762,2]
[318148490,1710096643116,-151.0,0.00024762,2]
[318148492,1710096643125,-151.0,0.00024762,2]
[318148494,1710096643134,-151.0,0.00024762,2]
[318148496,1710096643144,-151.0,0.00024762,2]
[318148498,1710096643153,-151.0,0.00024762,2]
[318148499,1710096643163,-151.0,0.00024762,2]
[318148500,1710096643172,-151.0,0.00024762,2]
[318148501,1710096643181,-151.0,0.00024762,2]
[318148502,1710096643190,-151.0,0.00024762,2]
[318148503,1710096643200,-640.43369029,0.00024762,2]
[318148504,1710096643209,-151.0,0.00024762,2]
[318148505,1710096643218,-220.7812581,0.00024762,2]
[318148506,1710096643227,-252.066669,0.00024762,2]
[318148507,1710096643237,-1837.34,0.00024762,2]
[318148508,1710096643245,-198.34991184,0.00024762,2]
[318148509,1710096643258,-1638.99008816,0.00024762,2]
[318148510,1710096643267,-1518.09436969,0.00024762,2]
[318148511,1710096643279,-319.24563031,0.00024762,2]
[318148512,1710096643288,-1837.34,0.00024762,2]
[318148513,1710096643298,-1837.34,0.00024762,2]
[318148514,1710096643307,-1837.34,0.00024762,2]
[318148515,1710096643316,-500.0,0.00024762,2]
[318148516,1710096643325,-293.73436969,0.00024762,2]
[318148703,1710096646055,-206.26563031,0.00024762,2]
[318148705,1710096646064,-1984.9,0.00024762,2]
[318148707,1710096646073,-1984.9,0.00024762,2]
[318148709,1710096646083,-1984.9,0.00024762,2]
[318148711,1710096646093,-1984.9,0.00024762,2]
[318148713,1710096646103,-1984.9,0.00024762,2]
[318148715,1710096646112,-1984.9,0.00024762,2]
[318148717,1710096646123,-500.0,0.00024762,2]
[318148719,1710096646133,-500.0,0.00024762,2]
[318148721,1710096646142,-500.0,0.00024762,2]
[318148723,1710096646152,-500.0,0.00024762,2]
[318148725,1710096646161,-845.31,0.00024762,2]
[318148735,1710096646170,-845.31,0.00024762,2]
[318148738,1710096646267,-845.31,0.00024762,2]
[318148741,1710096646279,-845.31,0.00024762,2]
[318148743,1710096646290,-845.31,0.00024762,2]
[318148745,1710096646299,-845.31,0.00024762,2]
[318148747,1710096646309,-500.0,0.00024762,2]
[318148749,1710096646318,-500.0,0.00024762,2]
[318148751,1710096646329,-500.0,0.00024763,2]
[318148753,1710096646339,-500.0,0.00024763,2]
[318148755,1710096646348,-500.0,0.00024763,2]
[318148757,1710096646358,-500.0,0.00024763,2]
[318148759,1710096646367,-500.0,0.00024763,2]
[318148760,1710096646377,-500.0,0.00024763,2]
[318148761,1710096646387,-500.0,0.00024763,2]
[318148762,1710096646396,-500.0,0.00024763,2]
[318148763,1710096646405,-500.0,0.00024763,2]
[318148764,1710096646415,-500.0,0.00024763,2]
[318148765,1710096646424,-266.49618009,0.00024763,2]
[318148766,1710096646434,-500.0,0.00024763,2]
[318148767,1710096646446,-500.0,0.00024763,2]
[318148768,1710096646455,-500.0,0.00024763,2]
[318148769,1710096646464,-314.90373055,0.00024763,2]
[318148770,1710096646474,-500.0,0.00024763,2]
[318148771,1710096646483,-500.0,0.00024763,2]
[318148772,1710096646492,-500.0,0.00024763,2]
[318148773,1710096646501,-500.0,0.00024763,2]
[318148774,1710096646511,-480.4791655,0.00024763,2]
[318148775,1710096646521,-500.0,0.00024763,2]
[318148777,1710096646531,-500.0,0.00024763,2]
[318148779,1710096646540,-500.0,0.00024763,2]
[318148781,1710096646550,-500.0,0.00024763,2]
[318148783,1710096646559,-500.0,0.00024763,2]
[318148785,1710096646568,-500.0,0.00024763,2]
[318148787,1710096646578,-500.0,0.00024763,2]
[318148789,1710096646587,-500.0,0.00024763,2]
[318148791,1710096646596,-500.0,0.00024763,2]
[318148793,1710096646606,-500.0,0.00024763,2]
[318148795,1710096646614,-372.60697369,0.00024763,2]
[318148797,1710096646623,-151.0,0.00024763,2]
[318148799,1710096646633,-153.0,0.00024767,2]
[318148801,1710096646642,-153.0,0.00024767,2]
[318148803,1710096646651,-153.0,0.00024767,2]
[318148805,1710096646661,-500.0,0.00024769,2]
[318148807,1710096646670,-500.0,0.00024769,2]
[318148809,1710096646679,-294.36622071,0.00024769,2]
[318148811,1710096646688,-317.41386845,0.00024769,2]
[318148813,1710096646698,-500.0,0.00024769,2]
[318148815,1710096646707,-500.0,0.00024769,2]
[318148817,1710096646716,-500.0,0.00024769,2]
[318148819,1710096646726,-500.0,0.00024769,2]
[318148821,1710096646736,-613.48,0.00024769,2]
[318148823,1710096646746,-613.48,0.00024769,2]
[318148825,1710096646755,-613.48,0.00024769,2]
[318148827,1710096646765,-613.48,0.00024769,2]
[318148829,1710096646774,-759.16,0.00024769,2]
[318148831,1710096646783,-1943.55,0.00024769,2]
[318148833,1710096646793,-6370.19,0.00024769,2]
[318148835,1710096646803,-6370.19,0.00024769,2]
[318148837,1710096646812,-6370.19,0.00024769,2]
[318148839,1710096646822,-6370.19,0.00024769,2]
[318148841,1710096646832,-6370.19,0.00024769,2]
[318148843,1710096646843,-1837.34,0.00024769,2]
[318148845,1710096646854,-1984.9,0.00024769,2]
[318148847,1710096646863,-845.31,0.00024769,2]
[318148849,1710096646872,-559.91762325,0.00024769,2]
[318148851,1710096646881,-263.23365243,0.00024769,2]
[318148853,1710096646890,-500.0,0.0002477,2]
[318148855,1710096646900,-500.0,0.0002477,2]
[318148857,1710096646909,-500.0,0.0002477,2]
[318148859,1710096646919,-429.53958359,0.0002477,2]
[318148861,1710096646928,-759.16,0.0002477,2]
[318148864,1710096646939,-759.16,0.0002477,2]
[318148866,1710096646948,-759.16,0.0002477,2]
[318148868,1710096646958,-759.16,0.0002477,2]
[318148869,1710096646967,-759.16,0.0002477,2]
[318148872,1710096646977,-759.16,0.0002477,2]
[318148874,1710096646987,-759.16,0.0002477,2]
[318148875,1710096646997,-759.16,0.0002477,2]
[318148878,1710096647006,-759.16,0.0002477,2]
[318148880,1710096647016,-759.16,0.0002477,2]
[318148882,1710096647025,-759.16,0.0002477,2]
[318148884,1710096647035,-759.16,0.0002477,2]
[318148886,1710096647045,-759.16,0.0002477,2]
[318148888,1710096647054,-759.16,0.0002477,2]
[318148890,1710096647063,-759.16,0.0002477,2]
[318148892,1710096647072,-759.16,0.0002477,2]
[318148894,1710096647082,-759.24970578,0.0002477,2]
[318148896,1710096647091,-1943.55,0.0002477,2]
[318148898,1710096647102,-1943.55,0.0002477,2]
[318148900,1710096647111,-1943.55,0.0002477,2]
[318148902,1710096647120,-1943.55,0.0002477,2]
[318148904,1710096647130,-1943.55,0.0002477,2]
[318148906,1710096647140,-1943.55,0.0002477,2]
[318148908,1710096647150,-1943.55,0.0002477,2]
[318148910,1710096647159,-1943.55,0.0002477,2]
[318148912,1710096647168,-1943.55,0.0002477,2]
[318148914,1710096647177,-1943.55,0.0002477,2]
[318148916,1710096647187,-1943.55,0.0002477,2]
[318148918,1710096647196,-1943.55,0.0002477,2]
[318148920,1710096647205,-1943.55,0.0002477,2]
[318148922,1710096647214,-1943.55,0.0002477,2]
[318148924,1710096647223,-618.08436675,0.0002477,2]
[318148926,1710096647238,-1325.46563325,0.0002477,2]
[318148928,1710096647247,-1943.55,0.0002477,2]
[318148930,1710096647256,-1943.63,0.0002477,2]
[318148932,1710096647265,-1837.34,0.0002477,2]
[318148934,1710096647275,-1837.34,0.0002477,2]
[318148936,1710096647283,-1837.34,0.0002477,2]
[318148938,1710096647293,-1837.34,0.0002477,2]
[318148940,1710096647302,-1837.34,0.0002477,2]
[318148942,1710096647310,-1837.34,0.0002477,2]